bitfinex/quotes_ETHUSD_20251026
["timestamp","ask_amount","ask_price","bid_price","bid_amount"]
[1761487192762,0.001,4081.0,4080.9,5.25625837]
[1761487193336,0.001,4081.0,4080.9,5.9099501]
[1761487193771,0.001,4081.0,4080.9,5.25625837]
[1761487194183,0.001,4081.0,4080.9,5.9099501]
[1761487196358,0.001,4081.0,4080.9,5.25625837]
[1761487197491,0.001,4081.0,4080.9,4.82865837]
[1761487198668,0.001,4081.0,4080.9,4.83065837]
[1761487200593,0.001,4081.0,4080.9,5.28276276]
[1761487200777,0.001,4081.0,4080.9,5.51877343]
[1761487200976,0.001,4081.0,4080.9,6.02565343]
[1761487201579,0.001,4081.0,4080.9,1.5572]
[1761487201812,0.4551,4081.0,4080.9,0.87491262]
[1761487202108,0.001,4081.0,4080.9,4.00763985]
[1761487202314,0.001,4081.0,4080.9,4.66264234]
[1761487202489,0.001,4081.0,4080.9,4.00763985]
[1761487202699,0.001,4081.0,4080.9,4.66263558]
[1761487203321,0.001,4081.0,4080.9,4.00763985]
[1761487204381,0.4628,4081.0,4080.9,1.5572]
[1761487204610,0.001,4081.0,4080.9,4.00763985]
[1761487206021,0.001,4081.0,4080.9,0.002]
[1761487206191,2.9131798,4081.0,4080.9,0.002]
[1761487206526,0.99914396,4081.0,4080.9,0.002]
[1761487206679,0.4628,4081.0,4080.9,0.002]
[1761487206884,2.9131798,4081.0,4080.9,0.002]
[1761487208510,0.4628,4081.0,4080.9,0.002]
[1761487209119,0.4692,4081.0,4080.9,0.002]
[1761487209421,0.76114111,4081.0,4080.9,0.002]
[1761487209633,3.21152091,4081.0,4080.9,0.002]
[1761487211640,3.33392091,4081.0,4080.9,0.002]
[1761487212209,0.001,4081.0,4080.9,2.45243985]
[1761487212422,0.001,4081.0,4080.9,4.00763985]
[1761487212904,0.001,4081.0,4080.9,4.46863985]
[1761487213433,0.001,4081.0,4080.9,5.1230603]
[1761487213733,0.001,4081.0,4080.9,4.46863985]
[1761487213932,0.001,4081.0,4080.9,5.26009045]
[1761487217335,0.001,4081.0,4080.9,4.79909045]
[1761487218332,0.001,4081.0,4080.9,1.5572]
[1761487218533,0.4692,4081.0,4080.9,0.002]
[1761487219333,2.9195798,4081.0,4080.9,0.002]
[1761487224664,0.4692,4081.0,4080.9,0.002]
[1761487225215,0.001,4081.0,4080.9,0.002]
[1761487225411,0.001,4081.0,4080.9,2.45243985]
[1761487225851,0.4692,4081.0,4080.9,0.002]
[1761487227428,3.2115261,4081.0,4080.9,0.002]
[1761487228651,3.3339261,4081.0,4080.9,0.002]
[1761487229052,3.2115261,4081.0,4080.9,0.002]
[1761487231526,3.7184061,4081.0,4080.9,0.002]
[1761487232059,5.2736061,4081.0,4080.9,0.002]
[1761487235664,2.45068006,4080.5,4080.4,0.002]
[1761487235874,4.75782807,4080.5,4080.4,0.002]
[1761487236090,5.22602807,4080.5,4080.4,0.002]
[1761487236605,7.85910036,4080.4,4078.3,0.15]
[1761487236741,2.45170165,4078.8,4078.3,0.15]
[1761487237084,0.50688,4080.1,4078.4,0.461]
[1761487237251,2.45116996,4079.7,4078.9,2.45162896]
[1761487237773,3.004,4080.8,4078.4,0.65412243]
[1761487237978,2.45116951,4079.7,4078.9,2.45159075]
[1761487238180,0.4682,4079.8,4078.9,2.45159075]
[1761487238741,2.45127175,4079.6,4078.9,2.45159075]
[1761487238946,2.57368132,4079.5,4078.9,0.1224]
[1761487239179,2.57368132,4079.5,4078.9,1.6776]
[1761487240064,0.1224,4079.5,4078.9,1.6776]
[1761487240270,0.1224,4079.5,4078.9,2.5740313]
[1761487240444,0.1224,4079.5,4078.9,4.12919466]
[1761487240642,0.1224,4079.5,4078.9,0.1224]
[1761487240843,2.45138558,4079.4,4078.9,0.1224]
[1761487241043,2.75340414,4079.4,4078.9,0.1224]
[1761487241259,0.4464,4079.3,4078.9,0.1224]
[1761487241464,0.1224,4079.1,4078.5,0.5611]
[1761487241661,0.1224,4079.1,4078.8,2.45165079]
[1761487242181,0.1224,4079.1,4078.7,1.5552]
[1761487242388,0.1224,4079.1,4078.8,2.45170148]
[1761487243392,0.1224,4079.1,4078.7,2.451744]
[1761487243691,0.1224,4079.1,4078.5,0.1224]
[1761487243986,2.06208,4080.5,4077.0,1.7416256]
[1761487243987,0.2154,4078.7,4077.9,0.65251033]
[1761487244188,2.4518217,4078.6,4077.9,0.65251033]
[1761487244358,2.45188531,4078.5,4077.8,1.5552]
[1761487244564,2.89828531,4078.5,4077.8,1.5552]
[1761487244761,2.89828531,4078.5,4077.8,2.4523001]
[1761487245163,2.45165257,4078.9,4078.1,2.61849994]
[1761487245360,2.45170598,4078.8,4078.1,1.7216]
[1761487245786,2.89810598,4078.8,4078.1,1.7216]
[1761487245950,2.89817139,4078.7,4078.1,1.5552]
[1761487246146,2.45182299,4078.6,4078.0,1.5552]
[1761487246391,2.89822299,4078.6,4077.8,2.45224936]
[1761487246695,0.4464,4078.6,4077.6,1.5552]
[1761487246892,0.4464,4078.6,4077.8,2.45229338]
[1761487247055,2.45188181,4078.5,4077.7,2.45235905]
[1761487247262,2.45194193,4078.4,4077.5,2.64641033]
[1761487247771,3.40522193,4078.4,4077.2,0.65251033]
[1761487248095,2.89834193,4078.4,4077.1,0.65251033]
[1761487248255,3.43335905,4078.4,4077.1,3.10518821]
[1761487248456,0.98141712,4078.4,4077.1,0.4387]
[1761487248652,2.89834193,4078.4,4077.3,2.45255136]
[1761487249057,2.89834193,4078.4,4077.2,2.45260533]
[1761487249357,0.6618,4079.0,4076.9,0.1511]
[1761487249558,0.4464,4078.9,4078.3,0.152]
[1761487251592,0.2154,4079.0,4078.3,0.152]
[1761487251891,0.2154,4079.0,4078.3,2.60399405]
[1761487252102,0.4464,4079.3,4078.3,0.67425067]
[1761487252301,0.6618,4079.3,4078.3,0.152]
[1761487252479,3.11320725,4079.3,4078.4,2.45190901]
[1761487252801,0.4464,4079.2,4078.4,2.45190901]
[1761487253106,2.89786436,4079.2,4078.4,2.45190901]
[1761487253275,0.4464,4079.2,4078.5,2.45187666]
[1761487253479,0.2154,4079.3,4078.3,2.60400135]
[1761487253806,0.1224,4078.8,4078.4,2.45189859]
[1761487253980,0.1224,4078.8,4078.3,0.75083548]
[1761487254191,0.5688,4078.8,4078.3,0.2744]
[1761487254706,0.1224,4078.4,4078.3,0.152]
[1761487256216,3.02074193,4078.4,4078.3,0.152]
[1761487256413,3.56800012,4078.4,4078.3,0.152]
[1761487258270,1.11605819,4078.4,4078.3,0.152]
[1761487258470,3.44560012,4078.4,4078.3,0.152]
[1761487258678,0.54725819,4078.4,4078.3,0.152]
[1761487258902,2.89811364,4078.8,4078.3,0.152]
[1761487259103,0.4464,4078.7,4078.3,0.152]
[1761487259290,2.45189176,4078.5,4078.3,0.152]
[1761487259603,0.4464,4078.7,4078.3,0.152]
[1761487259808,0.50688,4079.2,4078.3,0.152]
[1761487259809,2.8982397,4078.6,4078.3,0.152]
[1761487260005,2.45189858,4078.5,4078.3,0.152]
[1761487260209,0.4464,4078.6,4078.3,0.152]
[1761487260507,0.4464,4078.9,4078.3,0.152]
[1761487260670,2.89805654,4078.9,4078.3,0.152]
[1761487260868,2.45176159,4078.7,4078.3,0.152]
[1761487261073,0.76794253,4078.8,4078.3,0.152]
[1761487261419,2.45194193,4078.4,4078.3,0.152]
[1761487261769,0.4464,4078.4,4078.3,0.152]
[1761487261970,2.45189824,4078.5,4078.3,0.152]
[1761487262274,0.4464,4078.7,4078.3,0.152]
[1761487262512,0.24517132,4078.7,4078.3,0.152]
[1761487262819,2.45159052,4079.0,4078.3,2.60399613]
[1761487263037,2.45164265,4078.9,4078.3,0.152]
[1761487263223,2.45164405,4078.9,4078.3,0.152]
[1761487263740,2.45170362,4078.8,4078.3,0.152]
[1761487264238,2.45165254,4078.9,4078.3,0.152]
[1761487264396,2.98828094,4078.9,4078.3,0.152]
[1761487265543,2.45187487,4078.6,4078.3,0.152]
[1761487266040,0.4631,4078.5,4078.3,0.152]
[1761487266340,2.45179047,4078.7,4078.3,0.152]
[1761487266743,2.45171534,4078.8,4078.3,0.152]
[1761487267311,2.45176536,4078.7,4078.3,0.152]
[1761487267625,2.9148141,4078.8,4078.3,0.152]
[1761487267835,3.45145388,4078.8,4078.3,0.152]
[1761487268052,2.45194193,4078.4,4078.3,0.152]
[1761487268412,3.03744193,4078.4,4078.3,0.152]
[1761487273269,2.57434193,4078.4,4078.3,0.152]
[1761487273568,3.00874193,4078.4,4078.3,0.152]
[1761487273863,3.55479943,4078.4,4078.3,0.152]
[1761487274520,0.53663978,4078.8,4078.3,0.152]
[1761487274521,2.45178929,4078.7,4078.3,0.152]
[1761487274722,2.66685603,4079.3,4078.3,0.152]
[1761487274976,2.45193093,4078.5,4078.3,0.152]
[1761487275154,0.4344,4078.7,4078.3,0.152]
[1761487275331,0.4344,4079.1,4078.3,0.152]
[1761487275533,2.45180237,4078.7,4078.3,0.152]
[1761487275724,2.45183313,4078.6,4078.3,0.152]
[1761487276352,0.2154,4079.3,4078.3,0.152]
[1761487276672,2.45169175,4078.9,4078.3,0.152]
[1761487276868,2.45170306,4078.8,4078.3,0.152]
[1761487277170,2.45163888,4079.0,4078.3,0.152]
[1761487277464,0.4344,4079.8,4078.4,0.4609]
[1761487277625,2.45150814,4079.2,4078.4,0.4609]
[1761487277821,0.4344,4079.7,4078.5,1.5552]
[1761487278032,0.4344,4079.7,4078.5,2.45188181]
[1761487278260,2.45129234,4079.5,4078.7,2.45172133]
[1761487278571,2.45135141,4079.4,4078.7,2.45172133]
[1761487279120,2.45121141,4079.7,4078.9,2.45159878]
[1761487279325,0.2164,4080.0,4078.8,2.91254462]
[1761487279566,2.45120645,4079.7,4078.9,0.4609]
[1761487279862,2.45111325,4079.8,4079.0,2.45158126]
[1761487280024,3.006405,4079.8,4079.0,2.45158126]
[1761487280219,3.006405,4079.8,4079.1,0.1664]
[1761487280438,0.55529175,4079.8,4079.1,0.1664]
[1761487280659,0.55529175,4079.8,4079.1,2.61790364]
[1761487280957,2.45110472,4079.8,4079.1,2.61790364]
[1761487281319,0.6508,4080.0,4079.1,0.1664]
[1761487281527,2.4513364,4079.5,4078.5,2.45187134]
[1761487281723,2.45135801,4079.4,4078.6,2.45177389]
[1761487282455,2.45135801,4079.4,4078.7,2.45173909]
[1761487282756,2.45135801,4079.4,4078.6,2.45180533]
[1761487282945,2.45140249,4079.3,4078.6,2.45180533]
[1761487283351,2.4514663,4079.2,4078.5,2.45187035]
[1761487283556,2.4514663,4079.2,4078.5,2.45187725]
[1761487283757,2.45139583,4079.4,4078.4,2.45194193]
[1761487283958,2.88579583,4079.4,4078.7,2.45174167]
[1761487284271,2.45165918,4078.9,4078.3,0.152]
[1761487284556,0.1224,4078.6,4078.3,2.60400203]
[1761487284862,0.1224,4078.6,4078.3,3.06490203]
[1761487285158,0.38213375,4079.4,4078.5,2.45188181]
[1761487285323,0.1224,4078.9,4078.6,2.45182097]
[1761487285523,0.1224,4078.9,4078.6,2.91272097]
[1761487285766,0.1224,4078.9,4078.7,2.91263392]
[1761487286067,0.1224,4079.2,4078.7,0.4609]
[1761487286245,0.1224,4079.4,4079.1,0.1664]
[1761487286640,0.2164,4080.0,4079.2,2.45143985]
[1761487286964,0.1224,4079.8,4079.4,2.45129139]
[1761487287564,0.001,4080.0,4079.6,2.57356972]
[1761487287748,0.001,4080.0,4079.7,0.4609]
[1761487287931,0.001,4080.0,4079.8,2.45107624]
[1761487288255,0.001,4080.0,4079.7,0.4609]
[1761487288465,0.001,4080.0,4079.9,2.45104046]
[1761487288668,0.001,4080.0,4079.8,2.57348945]
[1761487288865,0.001,4080.0,4079.9,2.45104046]
[1761487289028,0.001,4080.0,4079.9,2.91194046]
[1761487289230,0.001,4080.0,4079.9,0.4609]
[1761487289760,0.001,4080.0,4079.9,2.91194046]
[1761487289963,0.001,4080.0,4079.9,0.4609]
[1761487290427,0.001,4080.0,4079.8,1.6776]
[1761487290829,0.001,4080.0,4079.8,0.1224]
[1761487292181,0.001,4080.0,4079.8,0.5833]
[1761487292681,0.001,4080.0,4079.9,0.4609]
[1761487293112,0.001,4080.0,4079.8,0.1224]
[1761487293262,0.2252,4079.9,4078.8,0.65251033]
[1761487293451,0.2252,4079.9,4079.0,2.91243728]
[1761487293652,2.45111037,4079.8,4079.1,2.61791747]
[1761487293890,2.45126175,4079.6,4079.1,0.1664]
[1761487295098,0.99059623,4079.6,4078.7,0.4609]
[1761487295298,2.45133127,4079.5,4078.7,2.9126525]
[1761487295465,2.45135096,4079.4,4078.7,2.9126525]
[1761487295668,2.45135096,4079.4,4078.7,2.4517525]
[1761487295867,2.45152044,4079.2,4078.3,0.6129]
[1761487296099,2.74011248,4079.2,4078.3,0.6129]
[1761487296403,2.45153897,4079.1,4078.3,0.6129]
[1761487296811,2.45153897,4079.1,4078.4,2.45193895]
[1761487297611,2.45153897,4079.1,4078.3,0.6129]
[1761487297612,2.45152116,4079.1,4078.3,0.152]
[1761487297812,2.76909099,4079.0,4078.3,0.152]
[1761487298125,2.45171772,4078.8,4078.3,0.152]
[1761487298412,2.76903593,4079.0,4078.3,0.152]
[1761487298413,0.4344,4078.7,4078.3,0.152]
[1761487298633,2.45192733,4078.5,4078.3,0.152]
[1761487299165,0.31745132,4079.0,4078.3,0.152]
[1761487299417,2.89924595,4079.6,4078.4,0.4589]
[1761487299594,2.45144298,4079.3,4078.5,2.45183854]
[1761487299792,2.45144298,4079.3,4078.6,2.45181891]
[1761487300102,2.45144298,4079.3,4078.5,1.5552]
[1761487300103,0.2252,4079.9,4078.4,2.45189052]
[1761487300302,0.448,4079.5,4078.8,2.45165278]
[1761487300505,0.448,4079.5,4078.7,2.45174812]
[1761487300801,0.448,4079.5,4078.5,2.45188048]
[1761487300802,2.89929892,4079.5,4078.8,2.45169619]
[1761487301007,0.448,4079.5,4078.6,2.45180517]
[1761487301378,2.4514016,4079.3,4078.6,2.45180517]
[1761487301581,2.4514016,4079.3,4078.4,1.5552]
[1761487301582,2.45134522,4079.4,4078.7,2.45175802]
[1761487301903,2.45134522,4079.4,4078.5,1.5552]
[1761487301904,2.45124674,4079.6,4078.9,2.45163613]
[1761487302106,2.45125973,4079.6,4078.8,2.45164257]
[1761487302788,2.45125973,4079.6,4078.8,2.91054257]
[1761487303220,2.57378898,4079.4,4078.8,0.1224]
[1761487303521,2.57375532,4079.4,4078.8,0.1224]
[1761487304608,0.1224,4079.4,4078.8,2.57408871]
[1761487305387,0.1224,4079.4,4078.8,0.1224]
[1761487305593,2.45146105,4079.3,4078.8,0.1224]
[1761487305813,0.1224,4079.4,4078.8,0.1224]
[1761487306327,3.02176177,4079.4,4078.8,0.1224]
[1761487306527,2.45188181,4078.5,4078.4,0.002]
[1761487306732,2.57428181,4078.5,4078.4,0.002]
[1761487306903,3.02228181,4078.5,4078.4,0.002]
[1761487309130,2.57232057,4078.5,4078.4,0.002]
[1761487309329,0.12043876,4078.5,4078.4,0.002]
[1761487309828,0.1224,4078.6,4078.4,0.002]
[1761487311102,2.57422755,4078.6,4078.4,0.002]
[1761487311691,2.45153426,4079.1,4078.4,0.4609]
[1761487311932,0.1224,4079.2,4078.5,2.45183172]
[1761487312096,2.57387961,4079.2,4078.6,0.1224]
[1761487312298,0.1224,4079.2,4079.1,0.1664]
[1761487312496,0.1224,4079.4,4079.1,0.1664]
[1761487312950,0.001,4080.0,4079.1,1.17815674]
[1761487313105,0.1224,4079.7,4079.1,0.7477]
[1761487313310,2.57360383,4079.7,4079.1,0.7477]
[1761487313636,2.57360383,4079.7,4079.1,1.844]
[1761487315554,0.1224,4079.7,4079.1,0.1224]
[1761487315754,2.57375784,4079.4,4078.8,0.1224]
[1761487315906,2.57375784,4079.4,4078.8,1.6776]
[1761487316110,2.45152367,4079.1,4078.4,2.45393452]
[1761487316347,0.1224,4079.1,4078.5,1.6776]
[1761487316562,0.1224,4079.1,4078.6,0.42835345]
[1761487316907,0.448,4079.0,4078.5,0.1224]
[1761487317113,0.448,4079.0,4078.4,0.002]
[1761487317334,0.1224,4078.8,4078.4,0.002]
[1761487317610,2.57410658,4078.8,4078.4,0.002]
[1761487317812,2.45188181,4078.5,4078.4,0.002]
[1761487318017,0.1224,4078.5,4078.4,0.002]
[1761487318429,3.02228181,4078.5,4078.4,0.002]
[1761487318634,3.56968664,4078.5,4078.4,0.002]
[1761487320259,0.1224,4078.5,4078.4,0.002]
[1761487320950,0.448,4079.5,4078.4,0.002]
[1761487321153,0.1224,4078.7,4078.4,0.002]
[1761487321369,2.45188181,4078.5,4078.4,0.002]
[1761487321724,2.89988181,4078.5,4078.4,0.002]
[1761487322432,3.44728761,4078.5,4078.4,0.002]
[1761487323041,2.89988181,4078.5,4078.4,0.002]
[1761487323517,2.45188181,4078.5,4078.4,0.002]
[1761487323723,2.57417622,4078.7,4078.4,0.002]
[1761487323724,2.4518553,4078.6,4078.4,0.002]
[1761487323927,0.1224,4078.7,4078.4,0.002]
[1761487324743,0.4587,4079.3,4078.6,0.1224]
[1761487324945,0.1224,4079.1,4078.6,0.1224]
[1761487325454,0.1224,4079.4,4078.8,0.1224]
[1761487325654,0.1224,4079.4,4078.9,2.45164137]
[1761487325861,0.1224,4079.6,4079.3,0.1664]
[1761487326844,2.57362617,4079.6,4079.0,1.5552]
[1761487327045,0.1224,4079.6,4079.0,1.5552]
[1761487327250,0.1224,4079.6,4079.1,0.1664]
[1761487327469,0.1224,4079.6,4079.1,0.7274]
[1761487327672,0.1224,4079.6,4079.2,2.45144996]
[1761487327967,0.1224,4079.6,4079.3,2.45139019]
[1761487328274,0.1224,4079.6,4079.1,0.2888]
[1761487330360,0.1224,4079.6,4079.1,0.1224]
[1761487330568,0.4654,4079.5,4079.1,0.1224]
[1761487330751,0.4654,4079.5,4078.4,0.002]
[1761487330752,2.45175386,4078.8,4078.4,0.002]
[1761487331075,0.1224,4078.8,4078.4,0.002]
[1761487331682,2.4517623,4078.7,4078.4,0.002]
[1761487331975,3.03955008,4078.8,4078.4,0.002]
[1761487333171,0.4654,4078.7,4078.4,0.002]
[1761487333583,0.1224,4078.8,4078.4,0.002]
[1761487334384,0.5878,4078.8,4078.4,0.002]
[1761487335055,0.1224,4078.8,4078.4,0.002]
[1761487335257,0.5878,4078.8,4078.4,0.002]
[1761487336201,2.45144666,4079.3,4078.5,0.4473]
[1761487336400,2.57393248,4079.1,4078.5,0.1224]
[1761487336561,0.1224,4078.8,4078.4,0.002]
[1761487336903,0.1224,4078.8,4078.4,0.44701082]
[1761487337195,0.1224,4079.1,4078.5,0.5697]
[1761487337498,0.1224,4079.1,4078.7,2.45171492]
[1761487337800,0.1224,4079.1,4078.6,0.4473]
[1761487337801,2.57380407,4079.3,4078.6,2.89911079]
[1761487337957,0.1224,4079.3,4078.6,0.4473]
[1761487338287,0.1224,4079.3,4078.5,0.1224]
[1761487338960,0.1224,4079.3,4078.6,2.4518217]
[1761487339294,0.1224,4079.3,4078.6,3.01456121]
[1761487339458,2.57381284,4079.3,4078.6,3.01456121]
[1761487339655,2.45146107,4079.2,4078.5,0.1224]
[1761487339855,0.1224,4079.3,4078.6,2.4518217]
[1761487340584,0.1224,4079.3,4078.8,2.45168776]
[1761487340893,0.1224,4079.3,4078.7,2.45175154]
[1761487341391,0.1224,4079.3,4078.8,2.45169286]
[1761487341699,0.1224,4079.3,4078.8,0.54752744]
[1761487341856,0.1224,4079.5,4079.2,0.1664]
[1761487342262,0.1224,4079.5,4078.9,3.02128558]
[1761487342263,2.91674088,4079.4,4078.9,0.1224]
[1761487342462,2.45150868,4079.2,4078.5,0.002]
[1761487342695,2.45156851,4079.1,4078.7,0.1224]
[1761487342920,2.45170148,4078.8,4078.7,0.1224]
[1761487343061,2.45170148,4078.8,4078.5,0.002]
[1761487343255,2.4518217,4078.6,4078.5,0.002]
[1761487343587,2.9172217,4078.6,4078.5,0.002]
[1761487344660,2.4518217,4078.6,4078.5,0.002]
[1761487344893,0.4654,4079.0,4078.5,0.002]
[1761487345096,2.4518217,4078.6,4078.5,0.002]
[1761487345291,2.45172054,4078.8,4078.5,0.002]
[1761487345600,2.45133068,4079.5,4078.5,0.002]
[1761487345756,2.45116062,4079.7,4078.5,0.002]
[1761487345757,2.45143669,4079.3,4078.5,0.002]
[1761487345957,2.45147419,4079.2,4078.5,2.45385865]
[1761487346207,2.45147419,4079.2,4078.5,0.002]
[1761487346371,2.45141075,4079.3,4078.6,2.45177421]
[1761487346576,2.45134993,4079.4,4078.7,2.45174901]
[1761487346894,2.45144526,4079.3,4078.6,2.45180842]
[1761487347098,2.45134669,4079.4,4078.7,2.45171978]
[1761487347299,0.4654,4079.5,4078.7,2.45171978]
[1761487347598,2.45135353,4079.4,4078.7,2.45171978]
[1761487347892,2.91669093,4079.5,4078.7,2.45171978]
[1761487348094,2.91669093,4079.5,4078.8,0.32252008]
[1761487348305,0.001,4079.8,4078.8,0.32252008]
[1761487348507,0.001,4079.8,4079.7,4.17276062]
[1761487348876,0.001,4079.8,4079.7,4.62006062]
[1761487349986,0.001,4079.8,4079.7,5.27257095]
[1761487350780,0.001,4079.8,4079.7,4.62006062]
[1761487352969,0.001,4079.8,4079.7,4.74246062]
[1761487353205,0.001,4079.8,4079.7,5.52708487]
[1761487354772,0.4664,4079.8,4079.0,0.65251033]
[1761487355002,0.4664,4079.8,4078.8,1.5552]
[1761487355203,2.91755002,4079.8,4078.7,3.10422755]
[1761487355389,0.4664,4079.8,4078.6,0.65251033]
[1761487355720,0.50688,4079.6,4078.5,0.002]
[1761487355914,0.4654,4079.7,4078.5,0.002]
[1761487356114,2.45138406,4079.4,4078.5,0.002]
[1761487356422,2.91656598,4079.7,4078.7,2.45175943]
[1761487356830,0.4654,4079.6,4078.5,0.002]
[1761487356980,2.45152211,4079.1,4078.5,0.002]
[1761487357185,0.4654,4079.6,4078.5,0.002]
[1761487357381,2.45160264,4079.0,4078.5,0.002]
[1761487358025,0.4654,4078.9,4078.5,0.002]
[1761487358314,2.91705405,4078.9,4078.5,0.002]
[1761487358811,2.91291323,4078.8,4078.5,0.002]
[1761487359312,0.4612,4078.7,4078.5,0.002]
[1761487359541,2.4518217,4078.6,4078.5,0.002]
[1761487359879,0.4612,4078.6,4078.5,0.002]
[1761487360209,2.9130217,4078.6,4078.5,0.002]
[1761487360912,0.001,4079.6,4078.5,0.002]
[1761487360913,0.4622,4079.6,4078.5,0.002]
[1761487361084,2.45155545,4079.1,4078.5,0.002]
[1761487361480,0.001,4079.6,4078.5,0.002]
[1761487361704,2.45136442,4079.4,4078.6,2.45180208]
[1761487362110,2.45142593,4079.3,4078.5,2.45386604]
[1761487362411,2.45146118,4079.2,4078.5,2.45386604]
[1761487362613,2.45128079,4079.5,4078.7,2.45175011]
[1761487362801,0.001,4079.6,4078.5,0.002]
[1761487363000,2.45222921,4079.6,4078.8,2.45165878]
[1761487363200,0.001,4079.6,4079.1,2.45147556]
[1761487363432,0.001,4079.6,4078.9,2.45159308]
[1761487363952,0.001,4079.6,4079.0,2.45156678]
[1761487364327,0.001,4079.6,4079.1,0.1664]
[1761487364744,0.001,4079.6,4079.2,0.1224]
[1761487365244,2.45222155,4079.6,4079.2,0.1224]
[1761487365558,0.001,4079.6,4079.2,0.1224]
[1761487367109,2.45128079,4079.5,4078.8,1.5552]
[1761487367330,2.45128079,4079.5,4079.0,0.1224]
[1761487367731,0.4612,4079.4,4078.4,0.002]
[1761487367948,2.45158647,4079.0,4078.4,0.002]
[1761487368458,2.45171395,4078.8,4078.4,0.002]
[1761487368822,2.45165524,4078.9,4078.4,0.002]
[1761487369007,2.4518217,4078.6,4078.4,0.002]
[1761487369207,2.69700387,4078.6,4078.4,0.002]
[1761487369422,3.15820387,4078.6,4078.4,0.002]
[1761487371846,0.50788,4079.6,4078.4,0.002]
[1761487372061,2.45180271,4078.7,4078.4,0.002]
[1761487372259,2.9130217,4078.6,4078.4,0.002]
[1761487372753,0.4612,4078.6,4078.4,0.002]
[1761487373123,2.45159509,4079.0,4078.4,0.002]
[1761487373448,0.50688,4078.8,4078.4,0.002]
[1761487373652,2.4518217,4078.6,4078.4,0.002]
[1761487374347,2.9130217,4078.6,4078.4,0.002]
[1761487374713,2.4518217,4078.6,4078.4,0.002]
[1761487377255,2.9130217,4078.6,4078.4,0.002]
[1761487377810,3.0354217,4078.6,4078.4,0.002]
[1761487378016,3.58413415,4078.6,4078.4,0.002]
[1761487379942,4.09201415,4078.6,4078.4,0.002]
[1761487383749,3.63081415,4078.6,4078.4,0.002]
[1761487383954,3.00153415,4078.6,4078.4,0.002]
[1761487384147,2.5752217,4078.6,4078.4,0.002]
[1761487384678,3.0163217,4078.6,4078.4,0.002]
[1761487384851,2.5752217,4078.6,4078.4,0.002]
[1761487385387,0.001,4078.6,4078.4,2.47844255]
[1761487385572,0.001,4078.6,4078.5,0.436]
[1761487385899,0.001,4078.6,4078.5,0.65052]
[1761487386395,0.001,4078.6,4078.5,4.44308181]
[1761487389071,0.001,4078.6,4078.5,1.9912]
[1761487389280,0.001,4078.6,4078.5,4.44308181]
[1761487389485,0.001,4078.6,4078.5,1.9912]
[1761487390202,0.001,4078.6,4078.5,1.5572]
[1761487390503,0.001,4078.6,4078.5,4.47378181]
[1761487390694,0.001,4078.6,4078.5,4.71015284]
[1761487391086,0.001,4078.6,4078.5,5.36266317]
[1761487392199,0.001,4078.6,4078.5,2.44608136]
[1761487392392,0.001,4078.6,4078.5,1.79357103]
[1761487392909,2.4528217,4078.6,4078.5,0.002]
[1761487393678,2.9231217,4078.6,4078.5,0.002]
[1761487394696,2.4528217,4078.6,4078.5,0.002]
[1761487395293,2.9231217,4078.6,4078.5,0.002]
[1761487395605,3.0455217,4078.6,4078.5,0.002]
[1761487397620,0.1234,4078.6,4078.5,0.002]
[1761487397928,0.001,4078.6,4078.5,0.002]
[1761487398493,0.001,4078.6,4078.5,0.4667]
[1761487398724,0.001,4078.6,4078.5,0.80285565]
[1761487398926,0.001,4078.6,4078.5,2.48045565]
[1761487399125,0.001,4078.6,4078.5,4.93233746]
[1761487399320,0.001,4078.6,4078.5,0.92525565]
[1761487399702,0.001,4078.6,4078.5,3.37713746]
[1761487399908,0.001,4078.6,4078.5,4.93233746]
[1761487400128,0.001,4078.6,4078.5,2.01575565]
[1761487403706,0.001,4078.6,4078.5,4.46763746]
[1761487403905,0.4713,4078.6,4078.5,0.1244]
[1761487404204,3.0455217,4078.6,4078.5,0.002]
[1761487406319,3.5524017,4078.6,4078.5,0.002]
[1761487408222,3.0455217,4078.6,4078.5,0.002]
[1761487408831,0.1234,4078.6,4078.5,0.002]
[1761487409051,2.5752217,4078.6,4078.5,0.002]
[1761487409921,0.1234,4078.6,4078.5,0.002]
[1761487410734,0.001,4078.6,4078.5,0.002]
[1761487417480,0.001,4078.6,4078.5,0.4667]
[1761487417695,0.001,4078.6,4078.5,1.05189414]
[1761487417905,0.001,4078.6,4078.5,4.59618181]
[1761487418205,0.001,4078.6,4078.5,2.1443]
[1761487418364,0.001,4078.6,4078.5,1.6796]
[1761487421375,0.001,4078.6,4078.5,4.13148181]
[1761487421901,0.001,4078.6,4078.5,1.6796]
[1761487422280,0.001,4078.6,4078.5,5.39178208]
[1761487423893,0.001,4078.6,4078.5,6.04429241]
[1761487424413,0.001,4078.6,4078.5,5.39178208]
[1761487428181,0.001,4078.6,4078.5,6.1953438]
[1761487430414,0.001,4078.6,4078.5,5.89866208]
[1761487431804,0.001,4078.6,4078.5,5.99669036]
[1761487433719,0.001,4078.6,4078.5,6.24169036]
[1761487434633,0.001,4078.6,4078.5,6.29337208]
[1761487435318,0.001,4078.6,4078.5,7.76437208]
[1761487435519,0.001,4078.6,4078.5,8.00937208]
[1761487438329,0.001,4078.6,4078.5,5.99669036]
[1761487438792,0.001,4078.6,4078.5,5.48981036]
[1761487439215,0.001,4078.6,4078.5,6.24169036]
[1761487440220,0.001,4078.6,4078.5,5.48981036]
[1761487440609,0.001,4078.6,4078.5,3.46071036]
[1761487440808,0.4461,4078.6,4078.5,2.45388181]
[1761487441009,0.001,4078.6,4078.5,3.10832543]